fUSD/lending_fUSD_20250308
["ID","MTS","AMOUNT","RATE_DAILY","PERIOD"]
[355633878,1741415449995,-3131.34,8.219e-05,2]
[355633879,1741415450004,-4425.22,8.219e-05,2]
[355633880,1741415450016,-1511.73,8.219e-05,2]
[355633881,1741415450025,-500.0,8.219e-05,2]
[355633882,1741415450035,-47766.9,8.219e-05,2]
[355633883,1741415450046,-500.0,8.219e-05,2]
[355633884,1741415450057,-500.0,8.219e-05,2]
[355633885,1741415450067,-1561.66,8.219e-05,2]
[355633886,1741415450077,-151.0,8.219e-05,2]
[355633887,1741415450087,-399.89,8.219e-05,2]
[355633888,1741415450096,-1000.0,8.219e-05,2]
[355633889,1741415450105,-250.0,8.219e-05,2]
[355633890,1741415450114,-1253.97,8.219e-05,2]
[355633891,1741415450128,-157.63,8.241e-05,2]
[355633892,1741415450138,-150.99,8.241e-05,2]
[355633893,1741415450151,-419.24,8.241e-05,2]
[355633894,1741415450160,-530.21,8.241e-05,2]
[355633895,1741415450170,-157.63,8.302e-05,2]
[355633896,1741415450180,-157.63,8.362e-05,2]
[355633897,1741415450190,-322.54239235,8.375e-05,2]
[355633898,1741415450199,-157.63,8.422e-05,2]
[355633899,1741415450209,-152.43325329,8.473e-05,2]
[355633900,1741415450219,-157.63,8.483e-05,2]
[355633901,1741415450228,-1315.0,8.493e-05,2]
[355633902,1741415450238,-359.551272,8.493e-05,2]
[355633903,1741415450247,-500.0,8.493e-05,2]
[355633904,1741415450257,-220.905378,8.493e-05,2]
[355633905,1741415450266,-500.0,8.493e-05,2]
[355633906,1741415450275,-896.35,8.493e-05,2]
[355633907,1741415450285,-500.0,8.493e-05,2]
[355633908,1741415450296,-722.9,8.493e-05,2]
[355633909,1741415450305,-1231.77,8.493e-05,2]
[355633910,1741415450314,-872.8,8.493e-05,2]
[355633911,1741415450324,-500.0,8.493e-05,2]
[355633912,1741415450333,-500.0,8.493e-05,2]
[355633913,1741415450343,-500.0,8.493e-05,2]
[355633914,1741415450352,-500.0,8.493e-05,2]
[355633915,1741415450361,-1492.14,8.493e-05,2]
[355633916,1741415450371,-1176.18,8.493e-05,2]
[355633917,1741415450380,-500.0,8.493e-05,2]
[355633918,1741415450389,-500.0,8.493e-05,2]
[355633919,1741415450399,-870.31,8.493e-05,2]
[355633920,1741415450408,-822.23,8.493e-05,2]
[355633921,1741415450417,-500.0,8.493e-05,2]
[355633922,1741415450427,-951.0,8.493e-05,2]
[355633923,1741415450435,-500.0,8.493e-05,2]
[355633924,1741415450444,-1396.19,8.493e-05,2]
[355633925,1741415450454,-500.0,8.493e-05,2]
[355633926,1741415450463,-613.151511,8.493e-05,2]
[355633927,1741415450472,-999.63,8.493e-05,2]
[355633928,1741415450481,-500.0,8.493e-05,2]
[355633929,1741415450490,-500.0,8.493e-05,2]
[355633930,1741415450500,-500.0,8.493e-05,2]
[355633931,1741415450509,-810.48,8.493e-05,2]
[355633932,1741415450519,-500.0,8.493e-05,2]
[355633933,1741415450529,-500.0,8.493e-05,2]
[355633934,1741415450539,-500.0,8.493e-05,2]
[355633935,1741415450548,-500.0,8.493e-05,2]
[355633936,1741415450558,-500.0,8.493e-05,2]
[355633937,1741415450567,-1128.97,8.493e-05,2]
[355633938,1741415450577,-728.74,8.493e-05,2]
[355633939,1741415450586,-500.0,8.493e-05,2]
[355633940,1741415450596,-500.0,8.493e-05,2]
[355633941,1741415450605,-840.04,8.493e-05,2]
[355633942,1741415450618,-500.0,8.493e-05,2]
[355633943,1741415450633,-1260.5,8.493e-05,2]
[355633944,1741415450643,-1191.18,8.493e-05,2]
[355633945,1741415450653,-500.0,8.493e-05,2]
[355633946,1741415450663,-500.0,8.493e-05,2]
[355633947,1741415450673,-500.0,8.493e-05,2]
[355633948,1741415450683,-500.0,8.493e-05,2]
[355633949,1741415450692,-500.0,8.493e-05,2]
[355633950,1741415450702,-1104.84,8.493e-05,2]
[355633951,1741415450712,-556.66,8.493e-05,2]
[355633952,1741415450722,-500.0,8.493e-05,2]
[355633953,1741415450732,-500.0,8.493e-05,2]
[355633954,1741415450742,-500.0,8.493e-05,2]
[355633955,1741415450751,-500.0,8.493e-05,2]
[355633956,1741415450761,-500.0,8.493e-05,2]
[355633957,1741415450771,-500.0,8.493e-05,2]
[355633958,1741415450780,-500.0,8.493e-05,2]
[355633959,1741415450790,-500.0,8.493e-05,2]
[355633960,1741415450800,-500.0,8.493e-05,2]
[355633961,1741415450810,-500.0,8.493e-05,2]
[355633962,1741415450820,-500.0,8.493e-05,2]
[355633963,1741415450829,-500.0,8.493e-05,2]
[355633964,1741415450839,-507.09074857,8.493e-05,2]
[355633965,1741415450848,-500.0,8.493e-05,2]
[355633966,1741415450858,-706.14,8.493e-05,2]
[355633967,1741415450867,-500.0,8.493e-05,2]
[355633968,1741415450877,-500.0,8.493e-05,2]
[355633969,1741415450887,-500.0,8.493e-05,2]
[355633970,1741415450897,-637.26,8.493e-05,2]
[355633971,1741415450906,-500.0,8.493e-05,2]
[355633972,1741415450915,-520.39127656,8.493e-05,2]
[355633973,1741415450924,-500.0,8.493e-05,2]
[355633974,1741415450935,-1134.85,8.493e-05,2]
[355633975,1741415450944,-727.21,8.493e-05,2]
[355633976,1741415450954,-1090.69,8.493e-05,2]
[355633977,1741415450964,-500.0,8.493e-05,2]
[355633978,1741415450974,-500.0,8.493e-05,2]
[355633979,1741415450984,-583.27,8.493e-05,2]
[355633980,1741415450994,-1358.73,8.493e-05,2]
[355633981,1741415451004,-500.0,8.493e-05,2]
[355633982,1741415451013,-500.0,8.493e-05,2]
[355633983,1741415451023,-500.0,8.493e-05,2]
[355633984,1741415451032,-500.0,8.493e-05,2]
[355633985,1741415451041,-500.0,8.493e-05,2]
[355633986,1741415451050,-500.0,8.493e-05,2]
[355633987,1741415451060,-500.0,8.493e-05,2]
[355633988,1741415451070,-572.37885301,8.493e-05,2]
[355633989,1741415451081,-500.0,8.493e-05,2]
[355633990,1741415451091,-605.21,8.493e-05,2]
[355633991,1741415451101,-500.0,8.493e-05,2]
[355633992,1741415451110,-500.0,8.493e-05,2]
[355633993,1741415451120,-500.0,8.493e-05,2]
[355633994,1741415451133,-500.0,8.493e-05,2]
[355633995,1741415451143,-748.56,8.493e-05,2]
[355633996,1741415451153,-500.0,8.493e-05,2]
[355633997,1741415451163,-500.0,8.493e-05,2]
[355633998,1741415451173,-805.28,8.493e-05,2]
[355633999,1741415451183,-500.0,8.493e-05,2]
[355634000,1741415451192,-500.0,8.493e-05,2]
[355634001,1741415451204,-849.9,8.493e-05,2]
[355634002,1741415451215,-500.0,8.493e-05,2]
[355634003,1741415451225,-500.0,8.493e-05,2]
[355634004,1741415451235,-500.0,8.493e-05,2]
[355634005,1741415451246,-500.0,8.493e-05,2]
[355634006,1741415451256,-738.1,8.493e-05,2]
[355634007,1741415451265,-500.0,8.493e-05,2]
[355634008,1741415451275,-866.1,8.493e-05,2]
[355634009,1741415451284,-505.26,8.493e-05,2]
[355634010,1741415451294,-500.0,8.493e-05,2]
[355634011,1741415451304,-500.0,8.493e-05,2]
[355634012,1741415451313,-500.0,8.493e-05,2]
[355634013,1741415451323,-573.42773407,8.493e-05,2]
[355634014,1741415451332,-500.0,8.493e-05,2]
[355634015,1741415451342,-1594.4,8.493e-05,2]
[355634016,1741415451351,-500.0,8.493e-05,2]
[355634017,1741415451361,-500.0,8.493e-05,2]
[355634018,1741415451370,-500.0,8.493e-05,2]
[355634019,1741415451379,-500.0,8.493e-05,2]
[355634020,1741415451389,-500.0,8.493e-05,2]
[355634021,1741415451399,-2360.29,8.493e-05,2]
[355634022,1741415451408,-500.0,8.493e-05,2]
[355634023,1741415451418,-500.0,8.493e-05,2]
[355634024,1741415451427,-500.0,8.493e-05,2]
[355634025,1741415451437,-874.32,8.493e-05,2]
[355634026,1741415451447,-500.0,8.493e-05,2]
[355634027,1741415451456,-2019.32,8.493e-05,2]
[355634028,1741415451466,-905.05,8.493e-05,2]
[355634029,1741415451475,-500.0,8.493e-05,2]
[355634030,1741415451484,-500.0,8.493e-05,2]
[355634031,1741415451494,-500.0,8.493e-05,2]
[355634032,1741415451503,-500.0,8.493e-05,2]
[355634033,1741415451512,-500.0,8.493e-05,2]
[355634034,1741415451521,-1420.01,8.493e-05,2]
[355634035,1741415451532,-1478.89,8.493e-05,2]
[355634036,1741415451541,-500.0,8.493e-05,2]
[355634037,1741415451551,-1032.39,8.493e-05,2]
[355634038,1741415451560,-500.0,8.493e-05,2]
[355634039,1741415451570,-974.54,8.493e-05,2]
[355634040,1741415451579,-500.0,8.493e-05,2]
[355634041,1741415451589,-500.0,8.493e-05,2]
[355634042,1741415451598,-500.0,8.493e-05,2]
[355634043,1741415451608,-500.0,8.493e-05,2]
[355634044,1741415451617,-500.0,8.493e-05,2]
[355634045,1741415451627,-1371.19,8.493e-05,2]
[355634046,1741415451637,-500.0,8.493e-05,2]
[355634047,1741415451647,-500.0,8.493e-05,2]
[355634048,1741415451657,-1446.33,8.493e-05,2]
[355634049,1741415451667,-505.87,8.493e-05,2]
[355634050,1741415451677,-1772.86,8.493e-05,2]
[355634051,1741415451686,-500.0,8.493e-05,2]
[355634052,1741415451696,-500.0,8.493e-05,2]
[355634053,1741415451705,-1130.64,8.493e-05,2]
[355634054,1741415451715,-500.0,8.493e-05,2]
[355634055,1741415451724,-1523.51,8.493e-05,2]
[355634056,1741415451734,-618.72,8.493e-05,2]
[355634057,1741415451899,-2051.23,8.493e-05,2]
[355634058,1741415451908,-2066.5,8.493e-05,2]
[355634059,1741415451918,-958.95,8.493e-05,2]
[355634060,1741415451928,-500.0,8.493e-05,2]
[355634061,1741415451937,-1182.61,8.493e-05,2]
[355634062,1741415451947,-1228.55,8.493e-05,2]
[355634063,1741415451956,-1307.36,8.493e-05,2]
[355634064,1741415451966,-500.0,8.493e-05,2]
[355634065,1741415451975,-1157.02,8.493e-05,2]
[355634066,1741415451984,-500.0,8.493e-05,2]
[355634067,1741415451994,-1970.29,8.493e-05,2]
[355634068,1741415452003,-500.0,8.493e-05,2]
[355634069,1741415452012,-1287.32,8.493e-05,2]
[355634070,1741415452022,-500.0,8.493e-05,2]
[355634071,1741415452031,-500.0,8.493e-05,2]
[355634072,1741415452041,-1476.77,8.493e-05,2]
[355634073,1741415452050,-1699.58,8.493e-05,2]
[355634074,1741415452060,-500.0,8.493e-05,2]
[355634075,1741415452070,-977.07,8.493e-05,2]
[355634076,1741415452079,-500.0,8.493e-05,2]
[355634077,1741415452088,-208.1,8.493e-05,2]
[355634078,1741415452097,-1090.37,8.493e-05,2]
[355634079,1741415452107,-1081.12,8.493e-05,2]
[355634080,1741415452117,-1461.98,8.493e-05,2]
[355634081,1741415452129,-550.34448738,8.493e-05,2]
[355634082,1741415452140,-500.0,8.493e-05,2]
[355634083,1741415452150,-500.94,8.493e-05,2]
[355634084,1741415452160,-1408.08,8.493e-05,2]
[355634085,1741415452169,-500.0,8.493e-05,2]
[355634086,1741415452178,-500.0,8.493e-05,2]
[355634087,1741415452188,-500.0,8.493e-05,2]
[355634088,1741415452198,-1037.67,8.493e-05,2]
[355634089,1741415452207,-1295.82,8.493e-05,2]
[355634090,1741415452217,-1058.41,8.493e-05,2]
[355634091,1741415452226,-500.0,8.493e-05,2]
[355634092,1741415452235,-1048.47,8.493e-05,2]
[355634093,1741415452244,-500.0,8.493e-05,2]
[355634094,1741415452253,-997.21,8.493e-05,2]
[355634095,1741415452262,-739.48,8.493e-05,2]
[355634096,1741415452271,-1565.81,8.493e-05,2]
[355634097,1741415452281,-876.41,8.493e-05,2]
[355634098,1741415452290,-962.57,8.493e-05,2]
[355634099,1741415452300,-336.2378028,8.493e-05,2]
[355634100,1741415452309,-1054.35,8.493e-05,2]
[355634101,1741415452318,-500.0,8.493e-05,2]
[355634102,1741415452329,-575.4,8.493e-05,2]
[355634103,1741415452339,-723.79,8.493e-05,2]
[355634104,1741415452348,-1813.71,8.493e-05,2]
[355634105,1741415452358,-1131.98,8.493e-05,2]
[355634106,1741415452367,-865.24,8.493e-05,2]
[355634107,1741415452377,-812.66,8.493e-05,2]
[355634108,1741415452387,-500.0,8.493e-05,2]
[355634109,1741415452397,-500.0,8.493e-05,2]
[355634110,1741415452406,-500.0,8.493e-05,2]
[355634111,1741415452416,-1408.64,8.493e-05,2]
[355634112,1741415452425,-2138.86,8.493e-05,2]
[355634113,1741415452436,-500.0,8.493e-05,2]
[355634114,1741415452446,-500.0,8.493e-05,2]
[355634115,1741415452455,-500.0,8.493e-05,2]
[355634116,1741415452464,-500.0,8.493e-05,2]
[355634117,1741415452474,-1013.52,8.493e-05,2]
[355634118,1741415452483,-904.8,8.493e-05,2]
[355634119,1741415452493,-500.0,8.493e-05,2]
[355634120,1741415452503,-1485.4,8.493e-05,2]
[355634121,1741415452512,-1115.3,8.493e-05,2]
[355634122,1741415452521,-1108.5,8.493e-05,2]
[355634123,1741415452531,-2085.13,8.493e-05,2]
[355634124,1741415452540,-1126.24,8.493e-05,2]
[355634125,1741415452550,-938.83,8.493e-05,2]
[355634126,1741415452560,-500.0,8.493e-05,2]
[355634127,1741415452569,-1313.83,8.493e-05,2]
[355634128,1741415452578,-472.00653164,8.493e-05,2]
[355634129,1741415452587,-500.0,8.493e-05,2]
[355634130,1741415452596,-1289.8,8.493e-05,2]
[355634131,1741415452605,-585.0,8.493e-05,2]
[355634132,1741415452615,-500.0,8.493e-05,2]
[355634133,1741415452623,-500.0,8.493e-05,2]
[355634134,1741415452632,-861.82,8.493e-05,2]
[355634135,1741415452642,-1728.17,8.493e-05,2]
[355634136,1741415452651,-1095.5,8.493e-05,2]
[355634137,1741415452662,-1162.87,8.493e-05,2]
[355634138,1741415452671,-500.0,8.493e-05,2]
[355634139,1741415452681,-1586.63,8.493e-05,2]
[355634140,1741415452690,-854.02,8.493e-05,2]
[355634141,1741415452700,-500.0,8.493e-05,2]
[355634142,1741415452709,-1056.63,8.493e-05,2]
[355634143,1741415452719,-1453.83,8.493e-05,2]
[355634144,1741415452728,-2591.29,8.493e-05,2]
[355634145,1741415452738,-738.99,8.493e-05,2]
[355634146,1741415452748,-1832.64,8.493e-05,2]
[355634147,1741415452757,-500.0,8.493e-05,2]
[355634148,1741415452766,-1489.91,8.493e-05,2]
[355634149,1741415452775,-500.0,8.493e-05,2]
[355634150,1741415452785,-1930.23,8.493e-05,2]
[355634151,1741415452794,-500.0,8.493e-05,2]
[355634152,1741415452803,-500.0,8.493e-05,2]
[355634153,1741415452812,-560.12273719,8.493e-05,2]
[355634154,1741415452822,-500.0,8.493e-05,2]
[355634155,1741415452831,-1341.13,8.493e-05,2]
[355634156,1741415452841,-678.84,8.493e-05,2]
[355634157,1741415452850,-687.43,8.493e-05,2]
[355634158,1741415452859,-714.89,8.493e-05,2]
[355634159,1741415452868,-500.0,8.493e-05,2]
[355634160,1741415452878,-1321.91,8.493e-05,2]
[355634161,1741415452891,-776.95,8.493e-05,2]
[355634162,1741415452901,-500.0,8.493e-05,2]
[355634163,1741415452911,-500.0,8.493e-05,2]
[355634164,1741415452923,-587.23610914,8.493e-05,2]
[355634165,1741415452932,-652.15,8.493e-05,2]
[355634166,1741415452943,-1078.6,8.493e-05,2]
[355634167,1741415452953,-500.0,8.493e-05,2]
[355634168,1741415452963,-500.0,8.493e-05,2]
[355634169,1741415452973,-2014.94,8.493e-05,2]
[355634170,1741415452983,-2331.51,8.493e-05,2]
[355634171,1741415452993,-524.16,8.493e-05,2]
[355634172,1741415453003,-500.0,8.493e-05,2]
[355634173,1741415453014,-1353.14,8.493e-05,2]
[355634174,1741415453023,-500.0,8.493e-05,2]
[355634175,1741415453032,-1839.69,8.493e-05,2]
[355634176,1741415453041,-500.0,8.493e-05,2]
[355634177,1741415453051,-1831.42,8.493e-05,2]
[355634178,1741415453061,-681.8,8.493e-05,2]
[355634179,1741415453070,-1436.74,8.493e-05,2]
[355634180,1741415453080,-500.0,8.493e-05,2]
[355634181,1741415453089,-500.0,8.493e-05,2]
[355634182,1741415453099,-500.0,8.493e-05,2]
[355634183,1741415453109,-636.4,8.493e-05,2]
[355634184,1741415453118,-578.89059801,8.493e-05,2]
[355634185,1741415453131,-500.0,8.493e-05,2]
[355634186,1741415453140,-2944.05,8.493e-05,2]
[355634187,1741415453150,-558.52498283,8.493e-05,2]
[355634188,1741415453160,-500.0,8.493e-05,2]
[355634189,1741415453171,-1590.94,8.493e-05,2]
[355634190,1741415453181,-536.14542469,8.493e-05,2]
[355634191,1741415453190,-505.52898153,8.493e-05,2]
[355634192,1741415453202,-2008.55,8.493e-05,2]
[355634193,1741415453211,-1074.43,8.493e-05,2]
[355634194,1741415453221,-1164.62,8.493e-05,2]
[355634195,1741415453230,-1037.84,8.493e-05,2]
[355634196,1741415453239,-500.0,8.493e-05,2]
[355634197,1741415453249,-1193.58,8.493e-05,2]
[355634198,1741415453258,-1729.29,8.493e-05,2]
[355634199,1741415453268,-500.0,8.493e-05,2]
[355634200,1741415453277,-954.55,8.493e-05,2]
[355634201,1741415453287,-546.50216245,8.493e-05,2]
[355634202,1741415453296,-500.0,8.493e-05,2]
[355634203,1741415453305,-1819.27,8.493e-05,2]
[355634204,1741415453315,-2173.87,8.493e-05,2]
[355634205,1741415453324,-987.12,8.493e-05,2]
[355634206,1741415453333,-500.0,8.493e-05,2]
[355634207,1741415453343,-500.0,8.493e-05,2]
[355634208,1741415453352,-500.0,8.493e-05,2]
[355634209,1741415453363,-500.0,8.493e-05,2]
[355634210,1741415453373,-559.5,8.493e-05,2]
[355634211,1741415453384,-1471.77,8.493e-05,2]
[355634212,1741415453394,-500.0,8.493e-05,2]
[355634213,1741415453403,-459.58749292,8.493e-05,2]
[355634214,1741415453413,-500.0,8.493e-05,2]
[355634215,1741415453422,-500.0,8.493e-05,2]
[355634216,1741415453432,-1033.5,8.493e-05,2]
[355634217,1741415453441,-846.47,8.493e-05,2]
[355634218,1741415453451,-1328.66,8.493e-05,2]
[355634219,1741415453460,-500.0,8.493e-05,2]
[355634220,1741415453469,-500.0,8.493e-05,2]
[355634221,1741415453479,-1241.21,8.493e-05,2]
[355634222,1741415453488,-500.0,8.493e-05,2]
[355634223,1741415453497,-1868.79,8.493e-05,2]
[355634224,1741415453507,-500.0,8.493e-05,2]
[355634225,1741415453516,-961.1,8.493e-05,2]
[355634226,1741415453525,-2005.91,8.493e-05,2]
[355634227,1741415453535,-500.0,8.493e-05,2]
[355634228,1741415453545,-1092.76,8.493e-05,2]
[355634229,1741415453554,-734.24,8.493e-05,2]
[355634230,1741415453564,-860.81,8.493e-05,2]
[355634231,1741415453574,-593.95,8.493e-05,2]
[355634232,1741415453584,-997.96,8.493e-05,2]
[355634233,1741415453593,-718.61,8.493e-05,2]
[355634234,1741415453603,-946.28,8.493e-05,2]
[355634235,1741415453612,-887.72,8.493e-05,2]
[355634236,1741415453622,-919.47,8.493e-05,2]
[355634237,1741415453632,-500.0,8.493e-05,2]
[355634238,1741415453641,-1346.89,8.493e-05,2]
[355634239,1741415453651,-500.0,8.493e-05,2]
[355634240,1741415453666,-1480.65,8.493e-05,2]
[355634241,1741415453676,-2362.78,8.493e-05,2]
[355634242,1741415453686,-844.68,8.493e-05,2]
[355634243,1741415453696,-456.02957743,8.493e-05,2]
[355634244,1741415453705,-2350.07,8.493e-05,2]
[355634245,1741415453715,-1267.71,8.493e-05,2]
[355634246,1741415453724,-1591.82,8.493e-05,2]
[355634247,1741415453734,-771.38,8.493e-05,2]
[355634248,1741415453744,-2644.39,8.493e-05,2]
[355634249,1741415453760,-571.84,8.493e-05,2]
[355634250,1741415453780,-500.0,8.493e-05,2]
[355634251,1741415453789,-922.37,8.493e-05,2]
[355634252,1741415453799,-500.0,8.493e-05,2]
[355634253,1741415453809,-702.81,8.493e-05,2]
[355634254,1741415453818,-500.0,8.493e-05,2]
[355634255,1741415453828,-500.0,8.493e-05,2]
[355634256,1741415453838,-522.81376051,8.493e-05,2]
[355634257,1741415453847,-716.66,8.493e-05,2]
[355634258,1741415453857,-893.22,8.493e-05,2]
[355634259,1741415453867,-1265.39,8.493e-05,2]
[355634260,1741415453877,-500.0,8.493e-05,2]
[355634261,1741415453886,-2567.13,8.493e-05,2]
[355634262,1741415453895,-500.0,8.493e-05,2]
[355634263,1741415453906,-1546.39,8.493e-05,2]
[355634264,1741415453915,-500.0,8.493e-05,2]
[355634265,1741415453924,-500.0,8.493e-05,2]
[355634266,1741415453934,-602.21,8.493e-05,2]
[355634267,1741415453944,-2104.25,8.493e-05,2]
[355634268,1741415453954,-851.16,8.493e-05,2]
[355634269,1741415453963,-1599.35,8.493e-05,2]
[355634270,1741415453973,-629.43,8.493e-05,2]
[355634271,1741415453982,-500.0,8.493e-05,2]
[355634272,1741415453991,-1042.99,8.493e-05,2]
[355634273,1741415454001,-1265.05,8.493e-05,2]
[355634274,1741415454011,-500.0,8.493e-05,2]
[355634275,1741415454021,-2782.82,8.493e-05,2]
[355634276,1741415454030,-500.0,8.493e-05,2]
[355634277,1741415454040,-500.0,8.493e-05,2]
[355634278,1741415454050,-500.0,8.493e-05,2]
[355634279,1741415454061,-500.0,8.493e-05,2]
[355634280,1741415454070,-3200.53,8.493e-05,2]
[355634281,1741415454080,-880.95,8.493e-05,2]
[355634282,1741415454089,-9164.41,8.493e-05,2]
[355634283,1741415454099,-1706.87,8.493e-05,2]
[355634284,1741415454109,-607.46,8.493e-05,2]
[355634285,1741415454119,-500.0,8.493e-05,2]
[355634286,1741415454133,-500.0,8.493e-05,2]
[355634287,1741415454142,-1144.45,8.493e-05,2]
[355634288,1741415454152,-1869.88,8.493e-05,2]
[355634289,1741415454161,-2359.2,8.493e-05,2]
[355634290,1741415454173,-1672.14,8.493e-05,2]
[355634291,1741415454182,-2428.51,8.493e-05,2]
[355634292,1741415454191,-665.24,8.493e-05,2]
[355634293,1741415454201,-500.0,8.493e-05,2]
[355634294,1741415454212,-676.0,8.493e-05,2]
[355634295,1741415454223,-500.0,8.493e-05,2]
[355634296,1741415454239,-849.09,8.493e-05,2]
[355634297,1741415454254,-1315.19,8.493e-05,2]
[355634298,1741415454263,-1821.5,8.493e-05,2]
[355634299,1741415454273,-569.93,8.493e-05,2]
[355634300,1741415454282,-1364.57,8.493e-05,2]
[355634301,1741415454292,-2666.03,8.493e-05,2]
[355634302,1741415454302,-11076.72,8.493e-05,2]
[355634303,1741415454312,-500.0,8.493e-05,2]
[355634304,1741415454322,-544.98200875,8.493e-05,2]
[355634305,1741415454332,-2336.64,8.493e-05,2]
[355634306,1741415454342,-500.0,8.493e-05,2]
[355634307,1741415454352,-15323.96,8.493e-05,2]
[355634308,1741415454362,-1575.55,8.493e-05,2]
[355634309,1741415454372,-1411.04,8.493e-05,2]
[355634310,1741415454381,-3020.76,8.493e-05,2]
[355634311,1741415454391,-500.0,8.493e-05,2]
[355634312,1741415454402,-4124.22,8.493e-05,2]
[355634313,1741415454411,-500.0,8.493e-05,2]
[355634314,1741415454421,-500.0,8.493e-05,2]
[355634315,1741415454431,-3891.22,8.493e-05,2]
[355634316,1741415454441,-2288.95,8.493e-05,2]
[355634317,1741415454451,-954.19,8.493e-05,2]
[355634318,1741415454461,-3840.01,8.493e-05,2]
[355634319,1741415454471,-500.0,8.493e-05,2]
[355634320,1741415454480,-1481.21,8.493e-05,2]
[355634321,1741415454490,-1592.97,8.493e-05,2]
[355634322,1741415454652,-681.31,8.493e-05,2]
[355634323,1741415454663,-10735.35,8.493e-05,2]
[355634324,1741415454672,-1579.76,8.493e-05,2]
[355634325,1741415454682,-500.0,8.493e-05,2]
[355634326,1741415454692,-500.0,8.493e-05,2]
[355634327,1741415454702,-4536.17,8.493e-05,2]
[355634328,1741415454712,-1990.51,8.493e-05,2]
[355634329,1741415454721,-500.0,8.493e-05,2]
[355634330,1741415454731,-6311.23,8.493e-05,2]
[355634331,1741415454741,-4571.22,8.493e-05,2]
[355634332,1741415454751,-500.0,8.493e-05,2]
[355634333,1741415454761,-2093.65,8.493e-05,2]
[355634334,1741415454770,-5167.51,8.493e-05,2]
[355634335,1741415454780,-1659.95,8.493e-05,2]
[355634336,1741415454789,-1750.36,8.493e-05,2]
[355634337,1741415454799,-567.34256332,8.493e-05,2]
[355634338,1741415454808,-41942.54,8.493e-05,2]
[355634339,1741415454818,-500.0,8.493e-05,2]
[355634340,1741415454828,-1957.52,8.493e-05,2]
[355634341,1741415454838,-500.0,8.493e-05,2]
[355634342,1741415454848,-6064.31,8.493e-05,2]
[355634343,1741415454857,-6845.06,8.493e-05,2]
[355634344,1741415454867,-2893.94495642,8.493e-05,2]
[355634345,1741415455437,-1242.98504358,8.493e-05,2]
[355634346,1741415455447,-842.81,8.493e-05,2]
[355634347,1741415455457,-697.59,8.493e-05,2]
[355634348,1741415455466,-500.0,8.493e-05,2]
[355634349,1741415455476,-500.0,8.493e-05,2]
[355634350,1741415455486,-1384.43,8.493e-05,2]
[355634351,1741415455495,-500.0,8.493e-05,2]
[355634352,1741415455505,-839.17,8.493e-05,2]
[355634353,1741415455515,-2891.08849246,8.493e-05,2]
[355634354,1741415457796,-500.0,8.219e-05,2]
[355634355,1741415457806,-500.0,8.219e-05,2]
[355634356,1741415457816,-958.2,8.219e-05,2]
[355634357,1741415457826,-1292.97150754,8.493e-05,2]
[355634358,1741415457835,-470.2861938,8.493e-05,2]
[355634359,1741415457845,-5590.97,8.493e-05,2]
[355634360,1741415457854,-12727.92,8.493e-05,2]
[355634361,1741415457864,-2518.17,8.493e-05,2]
[355634362,1741415457874,-1200.08,8.493e-05,2]
[355634363,1741415457884,-1019.47,8.493e-05,2]
[355634364,1741415457894,-500.0,8.493e-05,2]
[355634365,1741415457905,-500.0,8.493e-05,2]
[355634366,1741415457915,-1180.46,8.493e-05,2]
[355634367,1741415457926,-3254.37,8.493e-05,2]
[355634368,1741415457935,-1671.31,8.493e-05,2]
[355634369,1741415457945,-3125.69,8.493e-05,2]
[355634370,1741415457955,-822.71,8.493e-05,2]
[355634371,1741415457965,-500.0,8.493e-05,2]
[355634372,1741415457975,-1742.24,8.493e-05,2]
[355634373,1741415457985,-5938.59,8.493e-05,2]
[355634374,1741415457994,-2474.54,8.493e-05,2]
[355634375,1741415458004,-3920.62,8.493e-05,2]
[355634376,1741415458015,-3450.09,8.493e-05,2]
[355634377,1741415458025,-500.0,8.493e-05,2]